[Event "Vasteras Open Minor 2018"]
[Site "Vasteras"]
[Date "2018.09.30"]
[Round "8"]
[White "Relom, Sunny"]
[Black "Jonsson, Kristjan Dagur"]
[Result "0-1"]
[ECO "A06"]
[WhiteElo "1452"]
[BlackElo "1267"]
[Annotator "NA"]
[PlyCount "82"]
[EventDate "2018.09.28"]
[EventCountry "SWE"]
[SourceTitle "playchess.com"]
[Source "ChessBase"]
[SourceQuality "1"]
[TimeControl "5400+30"]

1. Nf3 {[%emt 0:00:06]} d5 {[%emt 0:00:26]} 2. g3 {[%emt 0:00:27]} Nc6 {[%emt 0:01:07]} 3. Bg2 {[%emt 0:00:21]} e5 {[%emt 0:01:19]} 4. O-O {[%emt 0:00:33]} Bd6 {[%emt 0:04:30]} 5. d3 {[%emt 0:00:47]} Nf6 {[%emt 0:00:54]} 6. e4 {[%emt 0:01:19]} dxe4 {[%emt 0:02:03]} 7. dxe4 {[%emt 0:00:24]} Nxe4 {[%emt 0:02:55]} 8. Nxe5 {[%emt 0:01:37]} Nxe5 9. Bxe4 {[%emt 0:00:13]} O-O {[%emt 0:04:41]} 10. Nd2 {[%emt 0:08:14]} Qf6 {[%emt 0:03:12]} 11. Bg2 {[%emt 0:02:45]} Rd8 {[%emt 0:09:31]} 12. Ne4 {[%emt 0:01:17]} Qe7 {[%emt 0:01:19]} 13. Qe2 {[%emt 0:04:34]} Ng6 {[%emt 0:09:36]} 14. Be3 {[%emt 0:07:04]} c6 {[%emt 0:05:50]} 15. Nxd6 {[%emt 0:02:03]} Qxd6 {[%emt 0:00:49]} 16. Rad1 {[%emt 0:01:22]} Qf6 {[%emt 0:03:17]} 17. h4 {[%emt 0:01:28]} h6 {[%emt 0:01:10]} 18. h5 {[%emt 0:05:56]} Nf8 {[%emt 0:06:17]} 19. Rxd8 {[%emt 0:02:36]} Qxd8 {[%emt 0:00:25]} 20. Rd1 {[%emt 0:00:16]} Qf6 {[%emt 0:01:59]} 21. Bd4 {[%emt 0:02:27]} Qe6 {[%emt 0:03:32]} 22. Qd2 {[%emt 0:13:27]} Qg4 {[%emt 0:06:29]} 23. Re1 {[%emt 0:02:08]} Be6 {[%emt 0:03:02]} 24. Qc3 {[%emt 0:04:59]} f6 {[%emt 0:05:39]} 25. Bf3 {[%emt 0:05:13]} Qf5 {[%emt 0:02:49]} 26. g4 {[%emt 0:02:52]} Qf4 {[%emt 0:02:04]} 27. Re4 {[%emt 0:00:48]} Qd6 {[%emt 0:01:03]} 28. Bc5 {[%emt 0:02:06]} Qd7 {[%emt 0:00:43]} 29. Rd4 {[%emt 0:01:43]} Qf7 {[%emt 0:01:38]} 30. Qd3 {[%emt 0:01:43]} Nd7 {[%emt 0:01:17]} 31. Bd6 {[%emt 0:01:40]} Nb6 {[%emt 0:02:10]} 32. Be4 {[%emt 0:01:52]} Bd5 {[%emt 0:02:15]} 33. Bh7+ {[%emt 0:01:13]} Kh8 {[%emt 0:00:16]} 34. Bg3 {[%emt 0:05:47]} Re8 {[%emt 0:00:52]} 35. f4 {[%emt 0:00:34]} Qe7 {[%emt 0:03:23]} 36. Kh2 {[%emt 0:09:09]} c5 {[%emt 0:01:25]} 37. Rxd5 {[%emt 0:01:28]} Nxd5 {[%emt 0:00:25]} 38. Bf5 {[%emt 0:03:41]} Qe2+ {[%emt 0:01:51]} 39. Kh3 {[%emt 0:00:16]} Qxd3 {[%emt 0:00:55]} 40. Bxd3 {[%emt 0:00:22]} Nb4 {[%emt 0:01:05]} 41. Bg6 {[%emt 0:01:58]} Re2 {[%emt 0:01:12]} 0-1

[Event "Vasteras Open Minor 2018"]
[Site "Vasteras"]
[Date "2018.09.30"]
[Round "8"]
[White "Backlund, Elias"]
[Black "Lofgren, John"]
[Result "0-1"]
[ECO "A51"]
[WhiteElo "1329"]
[BlackElo "1511"]
[Annotator "NA"]
[PlyCount "41"]
[EventDate "2018.09.28"]
[EventCountry "SWE"]
[SourceTitle "playchess.com"]
[Source "ChessBase"]
[SourceQuality "1"]
[TimeControl "5400+30"]

1. d4 {[%emt 0:00:00]} Nf6 {[%emt 0:00:00]} 2. c4 {[%emt 0:00:00]} e5 {[%emt 0:00:00]} 3. dxe5 {[%emt 0:00:00]} Ne4 {[%emt 0:00:00]} 4. a3 {[%emt 0:02:35]} b6 {[%emt 0:00:05]} 5. Nf3 {[%emt 0:00:42]} d6 {[%emt 0:00:08]} 6. e3 {[%emt 0:04:42]} Be6 {[%emt 0:02:25]} 7. Be2 {[%emt 0:02:08]} Nc6 {[%emt 0:02:13]} 8. exd6 {[%emt 0:03:33]} Bxd6 {[%emt 0:00:33]} 9. O-O {[%emt 0:01:23]} O-O {[%emt 0:01:05]} 10. Nd4 {[%emt 0:01:56]} Nxd4 {[%emt 0:04:10]} 11. exd4 {[%emt 0:02:09]} Re8 {[%emt 0:06:20]} 12. Bf3 {[%emt 0:02:35]} Bxc4 {[%emt 0:00:23]} 13. Bxe4 {[%emt 0:02:00]} Rxe4 {[%emt 0:01:11]} 14. Re1 {[%emt 0:02:04]} Rxd4 {[%emt 0:00:16]} 15. Qc2 {[%emt 0:02:37]} Qh4 {[%emt 0:08:30]} 16. h3 {[%emt 0:02:54]} Rg4 {[%emt 0:10:08]} 17. Re3 {[%emt 0:02:21]} Rd8 {[%emt 0:04:39]} 18. Nc3 {[%emt 0:05:50]} Rd4 {[%emt 0:08:13]} 19. Re4 {[%emt 0:04:45]} Rxe4 {[%emt 0:01:50]} 20. Nxe4 {[%emt 0:01:30]} Bd3 {[%emt 0:00:28]} 21. Qd1 0-1

[Event "Vasteras Open Minor 2018"]
[Site "Vasteras"]
[Date "2018.09.30"]
[Round "8"]
[White "Arnason, Saemundur"]
[Black "Ohlund, Anders"]
[Result "1-0"]
[ECO "D15"]
[WhiteElo "1312"]
[BlackElo "1483"]
[Annotator "NA"]
[PlyCount "51"]
[EventDate "2018.09.28"]
[EventCountry "SWE"]
[SourceTitle "playchess.com"]
[Source "ChessBase"]
[SourceQuality "1"]
[TimeControl "5400+30"]

1. d4 {[%emt 0:00:34]} d5 {[%emt 0:00:00]} 2. c4 {[%emt 0:00:09]} c6 {[%emt 0:00:00]} 3. Nc3 {[%emt 0:00:36]} Nf6 {[%emt 0:00:00]} 4. Nf3 {[%emt 0:00:40]} dxc4 {[%emt 0:00:09]} 5. e3 {[%emt 0:00:25]} b5 {[%emt 0:00:39]} 6. a3 {[%emt 0:02:07]} Bf5 {[%emt 0:05:40]} 7. g3 {[%emt 0:02:23]} Ne4 {[%emt 0:05:40]} 8. Nd2 {[%emt 0:06:50]} Nxc3 {[%emt 0:01:59]} 9. bxc3 {[%emt 0:00:12]} e6 {[%emt 0:03:35]} 10. Bg2 {[%emt 0:00:50]} Be7 {[%emt 0:03:34]} 11. Bb2 {[%emt 0:04:22]} O-O {[%emt 0:02:02]} 12. h4 {[%emt 0:02:05]} h6 {[%emt 0:02:09]} 13. Qf3 {[%emt 0:01:01]} a6 {[%emt 0:03:31]} 14. g4 {[%emt 0:02:32]} Bh7 {[%emt 0:01:47]} 15. Qg3 {[%emt 0:00:35]} Qd6 {[%emt 0:02:20]} 16. f4 {[%emt 0:01:14]} Rc8 {[%emt 0:03:08]} 17. g5 {[%emt 0:00:58]} hxg5 {[%emt 0:00:22]} 18. hxg5 {[%emt 0:00:06]} Nd7 {[%emt 0:02:01]} 19. Qh4 {[%emt 0:00:48]} Nf8 {[%emt 0:00:26]} 20. Be4 {[%emt 0:02:35]} g6 {[%emt 0:01:07]} 21. Bc2 {[%emt 0:02:58]} Qd8 {[%emt 0:04:13]} 22. Ne4 {[%emt 0:00:53]} Ra7 {[%emt 0:02:07]} 23. Nf6+ {[%emt 0:00:23]} Bxf6 {[%emt 0:00:12]} 24. gxf6 {[%emt 0:00:11]} c5 {[%emt 0:02:30]} 25. e4 {[%emt 0:01:52]} g5 {[%emt 0:02:54]} 26. Qh6 {[%emt 0:03:15]} 1-0